bitfinex-derivatives/quotes_BNBF0:USTF0_20251219
["timestamp","ask_amount","ask_price","bid_price","bid_amount"]
[1766143986653,1.16665533,849.47,847.99,0.86928033]
[1766143986855,1.16665533,849.46,847.99,0.86928033]
[1766143987056,1.16665533,849.45,847.99,0.86928033]
[1766143987255,1.16665533,849.44,847.99,0.86928033]
[1766143987454,1.16665533,849.43,847.98,0.86928033]
[1766143987657,1.16665533,849.42,847.98,0.86928033]
[1766143987957,1.16665533,849.41,847.98,0.86928033]
[1766143988157,1.16665533,849.4,847.98,0.86928033]
[1766143988354,1.16665533,849.39,847.97,0.86928033]
[1766143988656,1.16665533,849.38,847.97,0.86928033]
[1766143988853,1.16665533,849.37,847.97,0.86928033]
[1766143989157,1.16665533,849.36,847.97,0.86928033]
[1766143989458,1.16665533,849.35,847.96,0.86928033]
[1766143989657,1.16665533,849.34,847.96,0.86928033]
[1766143989956,1.16665533,849.33,847.96,0.86928033]
[1766143990157,1.16665533,849.32,847.96,0.86928033]
[1766143990358,0.20487279,849.56,847.95,0.86928033]
[1766143991257,0.20487279,849.56,847.97,0.86928033]
[1766143991455,0.20487279,849.56,847.96,0.86928033]
[1766143993355,0.20487279,849.56,847.95,0.86928033]
[1766143994357,0.20487279,849.56,847.94,0.86928033]
[1766143994957,1.36734437,849.56,847.94,0.86928033]
[1766143995156,1.16247158,849.55,847.94,0.86928033]
[1766143999961,1.16247158,849.55,848.05,0.86928033]
[1766144000257,1.16247158,849.55,848.06,0.86928033]
[1766144001356,1.16247158,849.55,848.11,0.86928033]
[1766144002257,1.16247158,849.55,847.96,1.17793762]
[1766144002258,1.16247158,849.55,848.12,0.86928033]
[1766144003560,1.16247158,849.55,848.13,0.86928033]
[1766144005261,1.16247158,849.55,848.14,0.86928033]
[1766144005862,0.20487279,849.56,848.2,0.86928033]
[1766144006460,0.20487279,849.56,848.21,0.86928033]
[1766144007359,0.20487279,849.56,848.22,0.86928033]
[1766144008464,0.20487279,849.56,848.23,0.86928033]
[1766144009360,0.20487279,849.56,848.24,0.86928033]
[1766144010465,0.20487279,849.56,848.25,0.86928033]
[1766144011466,0.20487279,849.56,848.26,0.86928033]
[1766144012466,0.20487279,849.56,848.27,0.86928033]
[1766144013368,0.20487279,849.56,848.28,0.86928033]
[1766144014268,0.20487279,849.56,848.29,0.86928033]
[1766144015166,0.20487279,849.56,848.3,0.86928033]
[1766144017171,0.20487279,849.56,848.26,0.86928033]
[1766144017371,0.20487279,849.56,848.27,0.86928033]
[1766144017870,0.20487279,849.56,848.23,0.86928033]
[1766144018275,0.20487279,849.56,848.24,0.86928033]
[1766144018473,0.20487279,849.56,848.25,0.86928033]
[1766144019173,0.20487279,849.56,848.26,0.86928033]
[1766144020272,0.20487279,849.56,848.27,0.86928033]
[1766144020571,0.20487279,849.56,848.12,1.17793762]
[1766144020572,0.20487279,849.56,848.28,0.86928033]
[1766144021269,0.20487279,849.56,848.23,0.86928033]
[1766144023776,0.20487279,849.56,848.24,0.86928033]
[1766144028382,0.20487279,849.56,848.25,0.86928033]
[1766144031488,0.20487279,849.56,848.26,0.86928033]
[1766144034288,0.20487279,849.56,848.27,0.86928033]
[1766144037289,0.20487279,849.56,848.28,0.86928033]
[1766144038393,0.20487279,849.56,848.29,0.86928033]
[1766144038594,0.20487279,849.56,848.28,0.86928033]
[1766144039194,0.20487279,849.56,848.29,0.86928033]
[1766144043396,0.20487279,849.56,848.3,0.86928033]
[1766144043800,0.20487279,849.56,848.42,0.86928033]
[1766144044607,1.36732596,849.56,848.42,0.86928033]
[1766144044800,1.16245317,849.55,848.42,0.86928033]
[1766144044995,1.16245317,849.54,848.42,0.86928033]
[1766144045200,1.16245317,849.53,848.42,0.86928033]
[1766144045396,1.16245317,849.53,847.89,53.62417694]
[1766144045397,1.16245317,849.52,848.43,0.86928033]
[1766144045701,1.16245317,849.51,848.43,0.86928033]
[1766144045901,1.16245317,849.5,848.43,0.86928033]
[1766144046099,1.16245317,849.49,848.43,0.86928033]
[1766144046399,1.16245317,849.48,848.43,0.86928033]
[1766144046598,1.16245317,849.47,848.43,0.86928033]
[1766144046796,1.16245317,849.46,848.46,0.86928033]
[1766144046996,1.16245317,849.45,848.46,0.86928033]
[1766144047202,1.16245317,849.44,848.45,0.86928033]
[1766144047497,1.16245317,849.43,848.46,0.86928033]
[1766144047702,1.16245317,849.42,848.46,0.86928033]
[1766144047900,1.16245317,849.41,848.46,0.86928033]
[1766144048098,1.16245317,849.4,848.46,0.86928033]
[1766144048301,1.16245317,849.39,848.45,0.86928033]
[1766144048499,1.16245317,849.38,848.46,0.86928033]
[1766144048697,1.16245317,849.37,848.46,0.86928033]
[1766144049001,0.20487279,849.56,848.46,0.86928033]
[1766144049002,1.16245317,849.36,848.46,0.86928033]
[1766144049197,1.16245317,849.35,848.46,0.86928033]
[1766144049399,1.16245317,849.34,848.46,0.86928033]
[1766144049602,1.16245317,849.33,848.46,0.86928033]
[1766144049802,1.16245317,849.32,848.46,0.86928033]
[1766144049999,0.20487279,849.56,848.46,0.86928033]
[1766144051102,0.20487279,849.56,848.46,0.87174109]
[1766144053408,0.20487279,849.56,848.47,0.87174109]
[1766144054211,0.20487279,849.56,848.46,0.87174109]
[1766144054405,0.20487279,849.56,848.47,0.87174109]
[1766144055109,0.20487279,849.56,848.46,0.87174109]
[1766144055305,0.20487279,849.56,848.47,0.87174109]
[1766144058411,0.20487279,849.56,848.32,1.17793762]
[1766144058412,0.20487279,849.56,848.48,0.87174109]
[1766144059010,0.20487279,849.56,848.47,0.87174109]
[1766144059305,0.20487279,849.56,848.48,0.87174109]
[1766144061211,0.20487279,849.56,848.5,0.87174109]
[1766144064410,1.37451664,849.56,848.5,0.87174109]
[1766144064608,1.16964385,849.55,848.5,0.87174109]
[1766144066317,1.16964385,849.55,848.49,0.87174109]
[1766144067614,1.16964385,849.55,848.53,0.87174109]
[1766144072419,1.16964385,849.55,848.52,0.87174109]
[1766144078422,1.16964385,849.55,848.51,0.87174109]
[1766144079018,1.16964385,849.55,848.52,0.87174109]
[1766144079224,1.16964385,849.55,848.51,0.87174109]
[1766144083430,1.16964385,849.55,848.52,0.87174109]
[1766144083633,1.16964385,849.55,848.21,1.75786511]
[1766144083634,1.16964385,849.55,848.54,0.87174109]
[1766144085037,1.16964385,849.55,848.39,1.17793762]
[1766144085038,1.16964385,849.55,848.55,0.87174109]
[1766144085236,1.16964385,849.55,848.54,0.87174109]
[1766144085436,1.16964385,849.55,848.55,0.87174109]
[1766144086234,1.16964385,849.55,848.59,0.87174109]
[1766144086446,0.20487279,849.56,848.74,0.87174109]
[1766144086634,0.20487279,849.56,848.76,0.87174109]
[1766144086834,0.20487279,849.56,848.77,0.87174109]
[1766144087235,0.20487279,849.56,848.81,0.87174109]
[1766144087440,1.16929571,849.88,848.88,0.87174109]
[1766144087643,0.20485531,849.68,848.88,0.87174109]
[1766144088139,0.20485531,849.68,848.86,0.87174109]
[1766144089142,0.20485531,849.68,848.84,0.87174109]
[1766144090343,0.20485531,849.68,848.82,0.87174109]
[1766144091142,0.20485531,849.68,848.81,0.87174109]
[1766144092144,0.20485531,849.68,848.8,0.87174109]
[1766144093146,0.20485531,849.68,848.79,0.87174109]
[1766144094142,0.20485531,849.68,848.78,0.87174109]
[1766144095142,0.20485531,849.68,848.77,0.87174109]
[1766144096147,0.20485531,849.68,848.76,0.87174109]
[1766144096345,0.20485531,849.68,848.77,0.87174109]
[1766144097148,0.20485531,849.68,848.76,0.87174109]
[1766144098144,0.20485531,849.68,848.75,0.87174109]
[1766144098444,0.20485531,849.68,848.76,0.87174109]
[1766144099247,0.20485531,849.68,848.75,0.87174109]
[1766144103152,0.20485531,849.68,848.73,0.87174109]
[1766144103345,0.20485531,849.68,848.67,0.87174109]
[1766144105851,0.20485531,849.68,848.64,0.87174109]
[1766144110456,0.20485531,849.68,848.63,0.87174109]
[1766144110655,0.20485531,849.68,848.53,0.87174109]
[1766144112254,0.20485531,849.68,848.38,1.17793762]
[1766144112455,0.20485531,849.68,848.53,0.86763854]
[1766144114455,0.20485531,849.68,848.54,0.86763854]
[1766144117554,0.20485531,849.68,848.55,0.86763854]
[1766144118658,1.37010801,849.68,848.55,0.86763854]
[1766144118859,1.1652527,849.67,848.55,0.86763854]
[1766144119053,0.20485531,849.68,848.55,0.86763854]
[1766144119455,0.20485531,849.68,848.56,0.86763854]
[1766144120057,0.20485531,849.68,848.55,0.86763854]
[1766144120256,0.20485531,849.68,848.25,1.75786511]
[1766144120257,0.20485531,849.68,848.57,0.86763854]
[1766144120453,0.20485531,849.68,848.6,0.86763854]
[1766144121253,0.20485531,849.68,848.61,0.86763854]
[1766144122153,0.20485531,849.68,848.62,0.86763854]
[1766144124262,0.20485531,849.68,848.58,0.86763854]
[1766144124761,0.20485531,849.68,848.52,0.86763854]
[1766144124963,0.20485531,849.68,848.48,0.86763854]
[1766144125257,0.20485531,849.68,848.45,0.86763854]
[1766144125459,0.20485531,849.68,848.44,0.86763854]
[1766144126061,0.20485531,849.68,848.4,0.86763854]
[1766144135869,0.20485531,849.68,848.36,0.86763854]
[1766144136269,0.20485531,849.68,848.35,0.86763854]
[1766144138367,0.20485531,849.68,848.34,0.86763854]
[1766144140168,0.20485531,849.68,848.32,0.86763854]
[1766144140868,1.37051397,849.68,848.32,0.86763854]
[1766144141067,1.16565866,849.67,848.32,0.86763854]
[1766144141267,1.16565866,849.66,848.31,0.86763854]
[1766144141469,1.16565866,849.65,848.31,0.86763854]
[1766144141668,1.16565866,849.64,848.31,0.86763854]
[1766144141868,1.16565866,849.63,848.31,0.86763854]
[1766144142072,1.16565866,849.62,848.31,0.86763854]
[1766144142271,1.16565866,849.61,848.31,0.86763854]
[1766144142471,1.16565866,849.6,848.31,0.86763854]
[1766144142769,1.16565866,849.59,848.31,0.86763854]
[1766144143072,1.16565866,849.58,848.3,0.86763854]
[1766144143271,1.16565866,849.57,848.3,0.86763854]
[1766144143572,0.20485531,849.68,848.3,0.86763854]
[1766144145368,0.20485531,849.68,848.29,0.86763854]
[1766144148569,1.3708198,849.68,848.28,0.86763854]
[1766144148773,1.16596449,849.67,848.28,0.86763854]
[1766144149068,1.16596449,849.67,848.29,0.86763854]
[1766144151276,1.16596449,849.67,848.28,0.86763854]
[1766144152777,1.16596449,849.67,848.25,0.86763854]
[1766144153473,1.16596449,849.67,848.24,0.86763854]
[1766144155678,1.16596449,849.67,848.23,0.86763854]
[1766144156279,1.16596449,849.67,848.24,0.86763854]
[1766144157375,1.16596449,849.67,848.15,0.86763854]
[1766144159177,2.92593385,849.67,848.14,0.86763854]
[1766144159381,1.75996936,849.64,848.1,0.86763854]
[1766144159679,1.16596449,849.63,848.1,0.86763854]
[1766144161283,2.92593385,849.63,848.1,0.86763854]
[1766144161480,1.16596449,849.62,848.1,0.86763854]
[1766144161685,1.16596449,849.61,848.1,0.86763854]
[1766144161984,1.16596449,849.6,848.1,0.86763854]
[1766144162184,1.16596449,849.59,848.1,0.86763854]
[1766144162384,1.16596449,849.58,848.1,0.86763854]
[1766144162680,1.16596449,849.57,848.1,0.86763854]
[1766144162986,1.16596449,849.56,848.1,0.86763854]
[1766144163186,1.16596449,849.55,848.1,0.86763854]
[1766144163381,1.16596449,849.54,848.1,0.86763854]
[1766144163682,1.16596449,849.53,848.1,0.86763854]
[1766144163882,1.16596449,849.52,848.1,0.86763854]
[1766144164083,1.16596449,849.51,848.03,0.86763854]
[1766144164286,1.16596449,849.5,848.03,0.86763854]
[1766144164586,1.75996936,849.58,848.03,0.86763854]
[1766144164786,1.16625299,849.57,848.03,0.86763854]
[1766144166290,1.16625299,849.57,848.02,0.86763854]
[1766144169887,1.16625299,849.57,848.04,0.86763854]
[1766144170091,1.16625299,849.56,848.04,0.86763854]
[1766144170287,1.16625299,849.55,848.05,0.86763854]
[1766144170487,1.16625299,849.54,848.05,0.86763854]
[1766144170686,1.75996936,849.6,848.05,0.86763854]
[1766144170687,1.16625299,849.53,848.05,0.86763854]
[1766144170890,1.16625299,849.52,848.05,0.86763854]
[1766144171190,1.16625299,849.51,848.05,0.86763854]
[1766144171390,1.16625299,849.5,848.05,0.86763854]
[1766144171593,1.16625299,849.49,848.08,0.86763854]
[1766144171787,1.16625299,849.48,848.08,0.86763854]
[1766144171992,1.16625299,849.47,848.08,0.86763854]
[1766144172192,1.16625299,849.46,848.08,0.86763854]
[1766144172388,1.16625299,849.45,848.08,0.86763854]
[1766144172588,1.16625299,849.44,848.08,0.86763854]
[1766144172787,1.16625299,849.43,848.08,0.86763854]
[1766144172987,1.16625299,849.42,848.08,0.86763854]
[1766144173188,1.16625299,849.41,848.08,0.86763854]
[1766144173388,1.16625299,849.4,848.09,0.86763854]
[1766144173692,1.16625299,849.39,848.09,0.86763854]
[1766144173890,1.16625299,849.38,848.09,0.86763854]
[1766144174091,1.16625299,849.37,848.09,0.86763854]
[1766144174291,1.16625299,849.36,848.09,0.86763854]
[1766144174585,1.16625299,849.35,848.09,0.86763854]
[1766144174790,1.16625299,849.34,848.09,0.86763854]
[1766144175188,1.75996936,849.64,848.09,0.86763854]
[1766144175189,1.16625299,849.33,848.09,0.86763854]
[1766144175393,1.16625299,849.32,848.09,0.86763854]
[1766144175692,1.16625299,849.31,848.09,0.86763854]
[1766144175994,1.16625299,849.3,848.09,0.86763854]
[1766144176191,1.16625299,849.29,848.09,0.86763854]
[1766144176491,1.16625299,849.28,848.09,0.86763854]
[1766144176691,1.16625299,849.27,848.09,0.86763854]
[1766144176887,1.75996936,849.63,848.09,0.86763854]
[1766144176888,1.16625299,849.26,848.09,0.86763854]
[1766144177091,1.16625299,849.25,848.09,0.86763854]
[1766144177289,1.16625299,849.24,848.09,0.86763854]
[1766144177490,1.16625299,849.23,848.09,0.86763854]
[1766144177695,1.16625299,849.22,848.09,0.86763854]
[1766144177895,1.16625299,849.21,848.09,0.86763854]
[1766144178095,1.16625299,849.2,848.09,0.86763854]
[1766144178295,1.75996936,849.63,848.1,0.86763854]
[1766144178495,1.16644051,849.62,848.1,0.86763854]
[1766144179293,2.92640987,849.62,848.1,0.86763854]
[1766144179496,1.16644051,849.61,848.1,0.86763854]
[1766144180397,1.16644051,849.61,848.11,0.86763854]
[1766144181400,2.92640987,849.61,848.12,0.86763854]
[1766144181594,1.16644051,849.6,848.12,0.86763854]
[1766144182298,2.92640987,849.6,848.13,0.86763854]
[1766144182499,1.16644051,849.59,848.13,0.86763854]
[1766144183300,2.92640987,849.59,848.14,0.86763854]
[1766144183495,1.16644051,849.58,848.14,0.86763854]
[1766144184499,1.16644051,849.58,847.88,53.4468871]
[1766144184500,2.92640987,849.58,848.15,0.86763854]
[1766144184696,1.16644051,849.57,848.15,0.86763854]
[1766144185296,2.92640987,849.57,848.15,0.86763854]
[1766144185497,1.16644051,849.56,848.15,0.86763854]
[1766144187096,1.16644051,849.56,848.16,0.86763854]
[1766144189901,2.92640987,849.56,848.16,0.86763854]
[1766144190097,1.16644051,849.55,848.16,0.86763854]
[1766144190698,1.16644051,849.55,847.88,53.4468871]
[1766144190699,1.75996936,849.52,848.13,0.86763854]
[1766144190898,2.92640987,849.51,848.12,0.86763854]
[1766144191101,1.17439498,849.26,848.02,0.86763854]
[1766144191398,1.16644051,849.25,848.02,0.86763854]
[1766144192498,1.16644051,849.24,848.02,0.86763854]
[1766144192701,1.16644051,849.23,848.02,0.86763854]
[1766144192903,1.16644051,849.22,848.02,0.86763854]
[1766144193201,1.16644051,849.21,848.02,0.86763854]
[1766144193398,1.16644051,849.2,848.02,0.86763854]
[1766144193597,1.16644051,849.19,848.02,0.86763854]
[1766144193799,0.20485531,849.68,847.98,0.86763854]
[1766144193800,1.16644051,849.18,847.98,0.86763854]
[1766144194001,0.20485531,849.68,847.98,0.86763854]
[1766144194002,1.16644051,849.17,847.98,0.86763854]
[1766144194301,1.17439498,849.03,847.75,0.86763854]
[1766144194500,1.16644051,849.02,847.75,0.86763854]
[1766144195305,1.16644051,849.02,847.74,0.86763854]
[1766144195600,1.16644051,849.01,847.74,0.86763854]
[1766144195804,1.16644051,849.0,847.74,0.86763854]
[1766144196002,1.16644051,848.99,847.74,0.86763854]
[1766144196205,1.16644051,848.98,847.74,0.86763854]
[1766144196506,1.16644051,848.97,847.73,0.86763854]
[1766144196807,1.16644051,848.96,847.73,0.86763854]
[1766144197007,1.16644051,848.95,847.73,0.86763854]
[1766144197202,1.16644051,848.94,847.73,0.86763854]
[1766144197401,1.16644051,848.93,847.71,0.86763854]
[1766144197706,1.16644051,848.92,847.71,0.86763854]
[1766144198003,1.16644051,848.91,847.71,0.86763854]
[1766144198206,1.16644051,848.9,847.72,0.86763854]
[1766144198406,1.16644051,848.89,847.71,0.86763854]
[1766144198606,1.16644051,848.88,847.71,0.86763854]
[1766144198807,1.16644051,848.87,847.71,0.86763854]
[1766144199009,1.16644051,848.86,847.71,0.86763854]
[1766144199208,1.16644051,848.85,847.71,0.86763854]
[1766144199509,1.16644051,848.84,847.7,0.86763854]
[1766144199804,1.16644051,848.83,847.7,0.86763854]
[1766144200108,1.16644051,848.82,847.7,0.86763854]
[1766144200308,1.17439498,849.09,847.69,0.86763854]
[1766144200504,1.16614793,849.08,847.51,0.2050871]
[1766144200704,1.16614793,849.07,847.69,0.87186197]
[1766144200908,1.16614793,849.06,847.69,0.87186197]
[1766144201104,1.16614793,849.05,847.69,0.87186197]
[1766144201404,1.16614793,849.04,847.68,0.87186197]
[1766144201607,1.17242514,849.1,847.68,0.87186197]
[1766144201608,1.16614793,849.03,847.68,0.87186197]
[1766144201808,1.16614793,849.02,847.68,0.87186197]
[1766144202110,1.16614793,849.01,847.68,0.87186197]
[1766144202308,1.16614793,849.0,847.68,0.87186197]
[1766144202511,1.16614793,848.99,847.68,0.87186197]
[1766144202711,1.16614793,848.98,847.68,0.87186197]
[1766144202908,1.16614793,848.97,847.68,0.87186197]
[1766144203111,1.16614793,848.96,847.68,0.87186197]
[1766144203313,1.16614793,848.95,847.67,0.87186197]
[1766144203612,1.16614793,848.95,847.41,0.20512881]
[1766144203613,1.16614793,848.94,847.65,0.87186197]
[1766144203814,1.16614793,848.93,847.65,0.87186197]
[1766144204012,1.16614793,848.92,847.65,0.87186197]
[1766144204212,1.16614793,848.91,847.65,0.87186197]
[1766144204412,1.16614793,848.9,847.65,0.87186197]
[1766144204614,1.16614793,848.89,847.65,0.87186197]
[1766144204912,1.17242514,849.09,847.65,0.87186197]
[1766144204913,1.16614793,848.88,847.65,0.87186197]
[1766144205110,1.16614793,848.87,847.65,0.87186197]
[1766144205314,1.16614793,848.86,847.64,0.87186197]
[1766144205513,1.16614793,848.85,847.64,0.87186197]
[1766144205712,1.16614793,848.84,847.64,0.87186197]
[1766144205912,1.17242514,849.1,847.64,0.87186197]
[1766144206110,1.16572264,849.09,847.64,0.87186197]
[1766144206511,1.17242514,849.07,847.61,0.87186197]
[1766144206712,1.17242514,849.0,847.54,0.87186197]
[1766144206917,1.16572264,848.99,847.54,0.87186197]
[1766144207313,1.16572264,848.99,847.53,0.87186197]
[1766144207513,1.16572264,848.98,847.53,0.87186197]
[1766144207713,1.17242514,849.01,847.53,0.87186197]
[1766144207714,1.16572264,848.97,847.53,0.87186197]
[1766144208013,1.16572264,848.96,847.53,0.87186197]
[1766144208212,1.16572264,848.95,847.53,0.87186197]
[1766144208419,1.17242514,849.01,847.52,0.87186197]
[1766144208420,1.16572264,848.94,847.52,0.87186197]
[1766144208717,1.16572264,848.93,847.53,0.87186197]
[1766144208914,1.16572264,848.92,847.52,0.87186197]
[1766144209118,1.16572264,848.91,847.52,0.87186197]
[1766144209317,1.16572264,848.9,847.42,0.87186197]
[1766144209514,1.16572264,848.89,847.42,0.87186197]
[1766144209718,1.16572264,848.88,847.42,0.87186197]
[1766144209915,1.16572264,848.87,847.42,0.87186197]
[1766144210113,1.16572264,848.86,847.42,0.87186197]
[1766144210318,1.16572264,848.85,847.43,0.87186197]
[1766144210515,0.20485531,849.68,847.25,0.20516146]
[1766144210516,1.16572264,848.84,847.42,0.87186197]
[1766144210821,1.16572264,848.83,847.41,0.87186197]
[1766144211120,1.16572264,848.82,847.35,0.87186197]
[1766144211316,1.17242514,848.78,847.28,0.87186197]
[1766144211517,1.16572264,848.77,847.23,0.87186197]
[1766144212320,1.16572264,848.77,847.22,0.87186197]
[1766144212521,1.16572264,848.76,847.22,0.87186197]
[1766144212721,1.16572264,848.75,847.22,0.87186197]
[1766144212922,1.16572264,848.74,847.22,0.87186197]
[1766144213123,1.16572264,848.73,847.22,0.87186197]
[1766144213320,1.16572264,848.72,847.2,0.87186197]
[1766144213520,1.16572264,848.71,847.2,0.87186197]
[1766144213720,1.16572264,848.7,847.19,0.87186197]
[1766144213923,1.16572264,848.69,847.19,0.87186197]
[1766144214124,1.16572264,848.68,847.19,0.87186197]
[1766144214324,1.16572264,848.67,847.18,0.87186197]
[1766144214526,1.16572264,848.66,847.18,0.87186197]
[1766144214823,1.16572264,848.65,847.18,0.87186197]
[1766144215024,1.16572264,848.64,847.18,0.87186197]
[1766144215330,1.16572264,848.63,847.17,0.87186197]
[1766144215518,1.16572264,848.62,847.17,0.87186197]
[1766144215722,1.16572264,848.61,847.17,0.87186197]
[1766144215919,1.16572264,848.6,847.17,0.87186197]
[1766144216223,1.16572264,848.59,847.17,0.87186197]
[1766144216423,1.16572264,848.58,847.16,0.87186197]
[1766144216624,1.17242514,848.84,847.16,0.87186197]
[1766144216923,1.16289782,848.83,847.16,0.87186197]
[1766144217320,1.16289782,848.83,847.15,0.87186197]
[1766144217624,1.16289782,848.82,847.15,0.87186197]
[1766144217824,1.16289782,848.81,847.15,0.87186197]
[1766144218122,1.16289782,848.8,847.15,0.87186197]
[1766144218325,1.16289782,848.79,847.14,0.87186197]
[1766144218525,1.16289782,848.78,847.14,0.87186197]
[1766144218824,1.16289782,848.77,847.14,0.87186197]
[1766144219024,1.16289782,848.76,847.14,0.87186197]
[1766144219224,1.16289782,848.75,847.14,0.87186197]
[1766144219424,1.16289782,848.74,847.13,0.86909179]
[1766144219724,1.16289782,848.73,847.13,0.86909179]
[1766144220023,1.16289782,848.72,847.13,0.86909179]
[1766144220224,1.16289782,848.71,847.13,0.86909179]
[1766144220424,1.16289782,848.7,847.13,0.86909179]
[1766144220723,1.16289782,848.69,847.13,0.86909179]
[1766144220921,1.16289782,848.68,847.13,0.86909179]
[1766144221124,1.16289782,848.67,847.13,0.86909179]
[1766144221324,1.16289782,848.66,847.12,0.86909179]
[1766144221525,1.16289782,848.65,847.12,0.86909179]
[1766144221821,1.16289782,848.64,847.12,0.86909179]
[1766144222024,1.16289782,848.63,847.12,0.86909179]
[1766144222222,1.16289782,848.62,847.11,0.86909179]
[1766144222422,1.17242514,848.88,847.11,0.86909179]
[1766144222722,1.16176693,848.87,847.11,0.86909179]
[1766144223321,1.16176693,848.86,847.11,0.86909179]
[1766144223537,1.16176693,848.85,847.11,0.86909179]
[1766144223723,1.16176693,848.84,847.11,0.86909179]
[1766144223923,1.16176693,848.83,847.11,0.86909179]
[1766144224122,1.16176693,848.82,847.1,0.86909179]
[1766144224326,1.17242514,848.89,847.1,0.86909179]
[1766144224327,1.16176693,848.81,847.1,0.86909179]
[1766144224526,1.16176693,848.8,847.1,0.86909179]
[1766144224722,1.16176693,848.79,847.1,0.86909179]
[1766144224928,1.16176693,848.78,847.1,0.86909179]
[1766144225126,1.16176693,848.77,847.09,0.86909179]
[1766144225424,1.16176693,848.76,847.09,0.86909179]
[1766144225628,1.16176693,848.75,847.09,0.86909179]
[1766144225924,1.16176693,848.74,847.09,0.86909179]
[1766144226127,1.16176693,848.73,847.09,0.86909179]
[1766144226331,1.16176693,848.72,847.08,0.86909179]
[1766144226525,1.16176693,848.71,847.09,0.86909179]
[1766144226722,1.16176693,848.7,847.09,0.86909179]
[1766144226927,1.16176693,848.69,847.09,0.86909179]
[1766144227228,1.16176693,848.68,847.08,0.86909179]
[1766144227425,1.16176693,848.67,847.08,0.86909179]
[1766144227730,1.16176693,848.66,847.08,0.86909179]
[1766144227924,1.16176693,848.65,847.08,0.86909179]
[1766144228129,1.16176693,848.64,847.08,0.86909179]
[1766144228325,1.17242514,848.91,847.08,0.86909179]
[1766144228628,1.16087288,848.9,847.08,0.86909179]
[1766144229129,1.16087288,848.9,847.07,0.86909179]
[1766144230330,1.16087288,848.89,847.07,0.86909179]
[1766144230525,1.16087288,848.88,847.07,0.86909179]
[1766144230724,1.16087288,848.87,847.07,0.86909179]
[1766144230929,1.16087288,848.86,847.07,0.86909179]
[1766144231129,1.17242514,849.01,847.16,0.86909179]
[1766144231326,2.33308698,849.0,847.16,0.86909179]
[1766144231625,1.16066184,848.99,847.16,0.86909179]
[1766144231825,1.16066184,848.98,847.16,0.86909179]
[1766144232129,1.16066184,848.97,847.16,0.86909179]
[1766144232329,1.16066184,848.96,847.17,0.86909179]
[1766144232531,1.16066184,848.95,847.16,0.86909179]
[1766144232726,1.16066184,848.94,847.16,0.86909179]
[1766144232927,1.16066184,848.93,847.16,0.86909179]
[1766144233130,1.16066184,848.92,847.17,0.86909179]
[1766144233327,1.16066184,848.91,847.17,0.86909179]
[1766144233531,1.16066184,848.9,847.17,0.86909179]
[1766144233731,1.16066184,848.89,847.17,0.86909179]
[1766144234027,1.16066184,848.88,847.17,0.86909179]
[1766144234225,1.16066184,848.87,847.17,0.86909179]
[1766144234430,1.16066184,848.86,847.23,0.86909179]
[1766144234731,1.16066184,848.85,847.24,0.86909179]
[1766144234934,1.17242514,849.19,847.36,0.86909179]
[1766144235135,1.1685713,849.18,847.41,0.86909179]
[1766144235331,1.1685713,849.17,847.41,0.86909179]
[1766144235533,1.1685713,849.16,847.42,0.86909179]
[1766144235734,1.1685713,849.15,847.41,0.86909179]
[1766144235929,1.1685713,849.14,847.41,0.86909179]
[1766144236129,1.1685713,849.13,847.42,0.86909179]
[1766144236433,1.1685713,849.12,847.42,0.86909179]
[1766144236633,1.1685713,849.11,847.42,0.86909179]
[1766144236833,1.1685713,849.1,847.42,0.86909179]
[1766144237028,1.1685713,849.09,847.43,0.86909179]
[1766144237229,1.1685713,849.08,847.43,0.86909179]
[1766144237429,1.1685713,849.07,847.43,0.86909179]
[1766144237632,1.1685713,849.06,847.43,0.86909179]
[1766144237833,1.1685713,849.05,847.43,0.86909179]
[1766144238032,1.1685713,849.04,847.43,0.86909179]
[1766144238332,1.1685713,849.03,847.44,0.86909179]
[1766144238533,1.1685713,849.02,847.44,0.86909179]
[1766144238732,1.1685713,849.01,847.44,0.86909179]
[1766144238936,1.1685713,849.0,847.44,0.86909179]
[1766144239237,1.17242514,849.26,847.52,0.86909179]
[1766144239439,1.1696113,849.25,847.6,0.86909179]
[1766144239733,1.1696113,849.24,847.6,0.86909179]
[1766144239936,1.1696113,849.23,847.6,0.86909179]
[1766144240236,1.1696113,849.22,847.61,0.86909179]
[1766144240434,1.1696113,849.21,847.61,0.86909179]
[1766144240633,1.1696113,849.2,847.61,0.86909179]
[1766144240838,1.1696113,849.19,847.61,0.86909179]
[1766144241034,1.1696113,849.18,847.61,0.86909179]
[1766144241237,1.1696113,849.17,847.61,0.86909179]
[1766144241437,1.1696113,849.16,847.62,0.86909179]
[1766144241633,1.1696113,849.15,847.62,0.86909179]
[1766144241841,1.1696113,849.14,847.62,0.86909179]
[1766144242042,1.1696113,849.13,847.62,0.86909179]
[1766144242241,1.1696113,849.13,847.47,1.16248263]
[1766144242242,1.1696113,849.12,847.63,0.86909179]
[1766144242439,1.1696113,849.11,847.63,0.86909179]
[1766144242742,1.1696113,849.1,847.63,0.86909179]
[1766144242943,1.1696113,849.09,847.63,0.86909179]
[1766144243143,1.1696113,849.08,847.63,0.86909179]
[1766144243440,1.1696113,849.07,847.64,0.86909179]
[1766144243739,1.1696113,849.06,847.64,0.86909179]
[1766144243939,1.1696113,849.05,847.64,0.86909179]